fUSD/lending_fUSD_20240117
["ID","MTS","AMOUNT","RATE_DAILY","PERIOD"]
[311861151,1705476677327,-500.0,0.00023012,2]
[311861152,1705476677336,-805.22,0.00023012,2]
[311861153,1705476677346,-702.82,0.00023012,2]
[311861154,1705476677355,-500.0,0.00023012,2]
[311861155,1705476677365,-500.0,0.00023012,2]
[311861156,1705476677375,-247.40716098,0.00023012,2]
[311861157,1705476677386,-500.0,0.00023012,2]
[311861158,1705476677396,-500.0,0.00023012,2]
[311861159,1705476677407,-719.85,0.00023012,2]
[311861160,1705476677416,-500.0,0.00023012,2]
[311861161,1705476677426,-500.0,0.00023012,2]
[311861162,1705476677435,-500.0,0.00023012,2]
[311861163,1705476677445,-631.43,0.00023012,2]
[311861164,1705476677454,-541.19275159,0.00023012,2]
[311861165,1705476677463,-500.0,0.00023012,2]
[311861166,1705476677473,-763.12,0.00023012,2]
[311861167,1705476677483,-500.0,0.00023012,2]
[311861168,1705476677493,-500.0,0.00023012,2]
[311861169,1705476677502,-500.0,0.00023012,2]
[311861170,1705476677511,-500.0,0.00023012,2]
[311861171,1705476677520,-500.0,0.00023012,2]
[311861172,1705476677529,-346.12264505,0.00023012,2]
[311861173,1705476677539,-500.0,0.00023012,2]
[311861174,1705476677549,-500.0,0.00023012,2]
[311861175,1705476677558,-500.0,0.00023012,2]
[311861176,1705476677568,-500.0,0.00023012,2]
[311861177,1705476677578,-500.0,0.00023012,2]
[311861178,1705476677587,-859.33,0.00023012,2]
[311861179,1705476677597,-500.0,0.00023012,2]
[311861180,1705476677638,-500.0,0.00023012,2]
[311861181,1705476677648,-613.02,0.00023012,2]
[311861182,1705476677658,-500.0,0.00023012,2]
[311861183,1705476677667,-737.74,0.00023012,2]
[311861184,1705476677677,-778.55,0.00023012,2]
[311861185,1705476677687,-777.26,0.00023012,2]
[311861186,1705476677696,-529.27,0.00023012,2]
[311861187,1705476677706,-500.0,0.00023012,2]
[311861188,1705476677715,-639.14,0.00023012,2]
[311861189,1705476677725,-500.0,0.00023012,2]
[311861190,1705476677734,-500.0,0.00023012,2]
[311861191,1705476677743,-500.0,0.00023012,2]
[311861192,1705476677752,-461.5466423,0.00023012,2]
[311861193,1705476677762,-500.0,0.00023012,2]
[311861194,1705476677772,-500.0,0.00023012,2]
[311861195,1705476677781,-550.19629348,0.00023012,2]
[311861196,1705476677791,-500.0,0.00023012,2]
[311861197,1705476677800,-500.0,0.00023012,2]
[311861198,1705476677809,-500.0,0.00023012,2]
[311861199,1705476677821,-529.72,0.00023012,2]
[311861200,1705476677830,-500.0,0.00023012,2]
[311861201,1705476677841,-500.0,0.00023012,2]
[311861202,1705476677851,-509.13924982,0.00023012,2]
[311861203,1705476677861,-581.21,0.00023012,2]
[311861204,1705476677873,-508.91251526,0.00023012,2]
[311861205,1705476677884,-688.75,0.00023012,2]
[311861206,1705476677896,-547.96,0.00023012,2]
[311861207,1705476677907,-500.0,0.00023012,2]
[311861208,1705476677916,-500.0,0.00023012,2]
[311861209,1705476677926,-500.0,0.00023012,2]
[311861210,1705476677936,-500.0,0.00023012,2]
[311861211,1705476677947,-500.0,0.00023012,2]
[311861212,1705476677958,-673.83,0.00023012,2]
[311861213,1705476677967,-694.09,0.00023012,2]
[311861214,1705476677977,-500.0,0.00023012,2]
[311861215,1705476677987,-500.0,0.00023012,2]
[311861216,1705476677996,-500.0,0.00023012,2]
[311861217,1705476678006,-500.0,0.00023012,2]
[311861218,1705476678015,-828.88,0.00023012,2]
[311861219,1705476678024,-650.33,0.00023012,2]
[311861220,1705476678034,-742.88,0.00023012,2]
[311861221,1705476678045,-642.23,0.00023012,2]
[311861222,1705476678055,-500.0,0.00023012,2]
[311861223,1705476678065,-500.0,0.00023012,2]
[311861224,1705476678075,-500.0,0.00023012,2]
[311861225,1705476678085,-500.0,0.00023012,2]
[311861226,1705476678095,-500.0,0.00023012,2]
[311861227,1705476678105,-165.87595726,0.00023012,2]
[311861228,1705476678116,-512.93173788,0.00023012,2]
[311861229,1705476678126,-500.0,0.00023012,2]
[311861230,1705476678137,-500.0,0.00023012,2]
[311861231,1705476678146,-500.0,0.00023012,2]
[311861232,1705476678156,-500.0,0.00023012,2]
[311861233,1705476678166,-500.0,0.00023012,2]
[311861234,1705476678176,-730.8,0.00023012,2]
[311861235,1705476678186,-1027.67,0.00023012,2]
[311861236,1705476678196,-500.0,0.00023012,2]
[311861237,1705476678207,-500.0,0.00023012,2]
[311861238,1705476678217,-500.0,0.00023012,2]
[311861239,1705476678227,-500.0,0.00023012,2]
[311861240,1705476678237,-500.0,0.00023012,2]
[311861241,1705476678247,-500.0,0.00023012,2]
[311861242,1705476678257,-640.42053262,0.00023012,2]
[311861243,1705476678268,-500.0,0.00023012,2]
[311861244,1705476678278,-500.0,0.00023012,2]
[311861245,1705476678288,-500.0,0.00023012,2]
[311861246,1705476678298,-689.28,0.00023012,2]
[311861247,1705476678308,-500.0,0.00023012,2]
[311861248,1705476678318,-500.0,0.00023012,2]
[311861249,1705476678327,-500.0,0.00023012,2]
[311861250,1705476678337,-500.0,0.00023012,2]
[311861251,1705476678347,-514.49313759,0.00023012,2]
[311861252,1705476678357,-614.53,0.00023012,2]
[311861253,1705476678368,-516.40333686,0.00023012,2]
[311861254,1705476678378,-500.0,0.00023012,2]
[311861255,1705476678390,-243.92891075,0.00023012,2]
[311861256,1705476678403,-500.0,0.00023012,2]
[311861257,1705476678413,-508.85088455,0.00023012,2]
[311861258,1705476678423,-500.0,0.00023012,2]
[311861259,1705476678433,-500.0,0.00023012,2]
[311861260,1705476678443,-954.37,0.00023012,2]
[311861261,1705476678453,-513.94618602,0.00023012,2]
[311861262,1705476678463,-500.0,0.00023012,2]
[311861263,1705476678474,-822.41,0.00023012,2]
[311861264,1705476678483,-500.0,0.00023012,2]
[311861265,1705476678494,-500.0,0.00023012,2]
[311861266,1705476678504,-500.0,0.00023012,2]
[311861267,1705476678513,-500.0,0.00023012,2]
[311861268,1705476678524,-4651.03,0.00023012,2]
[311861269,1705476678534,-500.0,0.00023012,2]
[311861270,1705476678543,-500.0,0.00023012,2]
[311861271,1705476678553,-1552.7,0.00023012,2]
[311861272,1705476678563,-511.58965625,0.00023012,2]
[311861273,1705476678573,-500.0,0.00023012,2]
[311861274,1705476678585,-500.0,0.00023012,2]
[311861275,1705476678594,-530.4817708,0.00023012,2]
[311861276,1705476678604,-829.05,0.00023012,2]
[311861277,1705476678614,-811.11,0.00023012,2]
[311861278,1705476678623,-515.88397453,0.00023012,2]
[311861279,1705476678634,-500.0,0.00023012,2]
[311861280,1705476678643,-1128.82,0.00023012,2]
[311861281,1705476678652,-500.0,0.00023012,2]
[311861282,1705476678661,-3139.34,0.00023012,2]
[311861283,1705476678671,-500.0,0.00023012,2]
[311861284,1705476678682,-3499.89,0.00023012,2]
[311861285,1705476678693,-481.73970255,0.00023012,2]
[311861286,1705476678702,-518.4982116,0.00023012,2]
[311861287,1705476678711,-500.0,0.00023012,2]
[311861288,1705476678722,-500.0,0.00023012,2]
[311861289,1705476678731,-500.0,0.00023012,2]
[311861290,1705476678741,-599.65,0.00023012,2]
[311861291,1705476678750,-500.0,0.00023012,2]
[311861292,1705476678760,-482.0970545,0.00023012,2]
[311861293,1705476678769,-505.11,0.00023012,2]
[311861294,1705476678779,-12052.06,0.00023012,2]
[311861295,1705476678788,-18014.44,0.00023012,2]
[311861296,1705476678797,-500.0,0.00023012,2]
[311861297,1705476678807,-500.0,0.00023012,2]
[311861298,1705476678816,-500.0,0.00023012,2]
[311861299,1705476678825,-500.0,0.00023012,2]
[311861300,1705476678834,-778.19,0.00023012,2]
[311861301,1705476678844,-500.0,0.00023012,2]
[311861302,1705476678853,-500.0,0.00023012,2]
[311861303,1705476678863,-500.0,0.00023012,2]
[311861304,1705476678872,-500.0,0.00023012,2]
[311861305,1705476678882,-2864.71,0.00023012,2]
[311861306,1705476678891,-1076.87,0.00023012,2]
[311861307,1705476678902,-500.0,0.00023012,2]
[311861308,1705476678912,-506.21079234,0.00023012,2]
[311861309,1705476678922,-500.0,0.00023012,2]
[311861310,1705476678931,-819.56,0.00023012,2]
[311861311,1705476678942,-500.0,0.00023012,2]
[311861312,1705476678952,-500.0,0.00023012,2]
[311861313,1705476678961,-3790.64,0.00023012,2]
[311861314,1705476678970,-945.27,0.00023012,2]
[311861315,1705476678980,-7628.74,0.00023012,2]
[311861316,1705476678990,-1034.03,0.00023012,2]
[311861317,1705476678999,-5122.21,0.00023012,2]
[311861318,1705476679008,-2624.09,0.00023012,2]
[311861319,1705476679017,-500.0,0.00023012,2]
[311861320,1705476679028,-500.0,0.00023012,2]
[311861321,1705476679040,-2308.66,0.00023012,2]
[311861322,1705476679050,-2333.84,0.00023012,2]
[311861323,1705476679060,-941.51,0.00023012,2]
[311861324,1705476679069,-556.7,0.00023012,2]
[311861325,1705476679079,-500.0,0.00023012,2]
[311861326,1705476679088,-1350.94,0.00023012,2]
[311861327,1705476679098,-500.0,0.00023012,2]
[311861328,1705476679108,-500.0,0.00023012,2]
[311861329,1705476679119,-524.75,0.00023012,2]
[311861330,1705476679129,-5806.04,0.00023012,2]
[311861331,1705476679140,-569.61,0.00023012,2]
[311861332,1705476679149,-843.26,0.00023012,2]
[311861333,1705476679159,-500.0,0.00023012,2]
[311861334,1705476679169,-4815.06,0.00023012,2]
[311861335,1705476679178,-521.67,0.00023012,2]
[311861336,1705476679187,-500.0,0.00023012,2]
[311861337,1705476679197,-500.0,0.00023012,2]
[311861338,1705476679207,-3247.29,0.00023012,2]
[311861339,1705476679216,-500.0,0.00023012,2]
[311861340,1705476679225,-760.98,0.00023012,2]
[311861341,1705476679235,-9480.4,0.00023012,2]
[311861342,1705476679244,-500.0,0.00023012,2]
[311861343,1705476679254,-684.79,0.00023012,2]
[311861344,1705476679263,-4527.36,0.00023012,5]
[311861345,1705476679273,-506.4006543,0.00023012,2]
[311861346,1705476679282,-500.0,0.00023012,2]
[311861347,1705476679292,-500.0,0.00023012,2]
[311861348,1705476679301,-500.0,0.00023012,2]
[311861349,1705476679311,-500.0,0.00023012,2]
[311861350,1705476679320,-500.0,0.00023012,2]
[311861351,1705476679329,-500.0,0.00023012,2]
[311861352,1705476679338,-500.0,0.00023012,2]
[311861353,1705476679347,-500.0,0.00023012,2]
[311861354,1705476679357,-5872.34,0.00023012,2]
[311861355,1705476679366,-2431.68,0.00023012,2]
[311861356,1705476679375,-500.0,0.00023012,2]
[311861357,1705476679386,-332.89083987,0.00023012,2]
[311861358,1705476679395,-739.91,0.00023012,2]
[311861359,1705476679407,-500.0,0.00023012,2]
[311861360,1705476679416,-483.17634052,0.00023012,2]
[311861361,1705476679427,-555.72,0.00023012,2]
[311861362,1705476679438,-742.68,0.00023012,2]
[311861363,1705476679448,-500.0,0.00023012,2]
[311861364,1705476679457,-500.0,0.00023012,2]
[311861365,1705476679466,-500.0,0.00023012,2]
[311861366,1705476679476,-500.0,0.00023012,2]
[311861367,1705476679486,-672.14,0.00023012,2]
[311861368,1705476679495,-500.0,0.00023012,2]
[311861369,1705476679504,-500.0,0.00023012,2]
[311861370,1705476679514,-370.29,0.00023012,2]
[311861371,1705476679524,-2774.18,0.00023012,2]
[311861372,1705476679535,-1434.82,0.00023013,2]
[311861373,1705476679545,-1611.84,0.00023013,2]
[311861374,1705476679555,-1366.67,0.00023013,2]
[311861375,1705476679565,-653.08,0.00023013,2]
[311861376,1705476679574,-632.88,0.00023013,2]
[311861377,1705476679583,-619.51,0.00023013,2]
[311861378,1705476679593,-500.0,0.00023013,2]
[311861379,1705476679605,-573.44,0.00023013,2]
[311861380,1705476679614,-1179.97,0.00023013,2]
[311861381,1705476679625,-500.0,0.00023013,2]
[311861382,1705476679636,-506.94,0.00023013,2]
[311861383,1705476679647,-500.0,0.00023013,2]
[311861384,1705476679658,-544.36,0.00023013,2]
[311861385,1705476679752,-983.54,0.00023013,2]
[311861386,1705476679761,-1119.96,0.00023013,2]
[311861387,1705476679770,-1120.89,0.00023013,2]
[311861388,1705476679781,-833.89,0.00023013,2]
[311861389,1705476679791,-1194.46,0.00023013,2]
[311861390,1705476679800,-1392.34,0.00023013,2]
[311861391,1705476679810,-847.87,0.00023013,2]
[311861392,1705476679820,-1529.23,0.00023013,2]
[311861393,1705476679830,-500.0,0.00023013,2]
[311861394,1705476679840,-1493.13,0.00023013,2]
[311861395,1705476679850,-1181.68,0.00023013,2]
[311861396,1705476679859,-1368.82,0.00023013,2]
[311861397,1705476679868,-1036.23,0.00023013,2]
[311861398,1705476679877,-1584.15,0.00023013,2]
[311861399,1705476679886,-972.9,0.00023013,2]
[311861400,1705476679895,-554.38,0.00023013,2]
[311861401,1705476679904,-153.7318079,0.00023013,2]
[311861402,1705476679913,-1666.38,0.00023013,2]
[311861403,1705476679922,-1024.95,0.00023013,2]
[311861404,1705476679931,-830.41,0.00023013,2]
[311861405,1705476679942,-500.0,0.00023013,2]
[311861406,1705476679952,-1117.15,0.00023013,2]
[311861407,1705476679961,-530.03,0.00023013,2]
[311861408,1705476679970,-1307.76,0.00023013,2]
[311861409,1705476679979,-1289.65,0.00023013,2]
[311861410,1705476679988,-500.0,0.00023013,2]
[311861411,1705476679998,-500.0,0.00023013,2]
[311861412,1705476680007,-1046.46,0.00023013,2]
[311861413,1705476680016,-1248.85,0.00023013,2]
[311861414,1705476680025,-1637.93,0.00023013,2]
[311861415,1705476680034,-1066.89,0.00023013,2]
[311861416,1705476680043,-1459.88,0.00023013,2]
[311861417,1705476680052,-753.58,0.00023013,2]
[311861418,1705476680061,-1256.18,0.00023013,2]
[311861419,1705476680070,-500.0,0.00023013,2]
[311861420,1705476680079,-598.95,0.00023013,2]
[311861421,1705476680089,-1345.89,0.00023013,2]
[311861422,1705476680098,-561.88,0.00023013,2]
[311861423,1705476680107,-616.63,0.00023013,2]
[311861424,1705476680117,-1089.66,0.00023013,2]
[311861425,1705476680126,-500.0,0.00023013,2]
[311861426,1705476680136,-214.70943241,0.00023013,2]
[311861427,1705476680145,-1259.68,0.00023013,7]
[311861428,1705476680154,-924.37,0.00023013,2]
[311861429,1705476680164,-1723.56,0.00023013,2]
[311861430,1705476680173,-629.54,0.00023013,2]
[311861431,1705476680182,-500.0,0.00023013,2]
[311861432,1705476680191,-1338.16,0.00023013,2]
[311861433,1705476680201,-1212.93,0.00023013,2]
[311861434,1705476680210,-813.57,0.00023013,2]
[311861435,1705476680219,-1386.78,0.00023013,2]
[311861436,1705476680229,-1840.63,0.00023013,2]
[311861437,1705476680239,-500.0,0.00023013,2]
[311861438,1705476680248,-793.74,0.00023013,2]
[311861439,1705476680258,-1325.41,0.00023013,2]
[311861440,1705476680267,-500.0,0.00023013,2]
[311861441,1705476680276,-1108.93,0.00023013,2]
[311861442,1705476680285,-1624.2,0.00023013,2]
[311861443,1705476680295,-4556.22,0.00023013,2]
[311861444,1705476680305,-500.0,0.00023013,2]
[311861445,1705476680314,-500.0,0.00023013,2]
[311861446,1705476680324,-500.0,0.00023013,2]
[311861447,1705476680333,-1833.09,0.00023013,2]
[311861448,1705476680342,-2110.2,0.00023013,2]
[311861449,1705476680352,-1719.95,0.00023013,2]
[311861450,1705476680362,-1358.36,0.00023013,2]
[311861451,1705476680372,-1348.57,0.00023013,2]
[311861452,1705476680382,-500.0,0.00023013,2]
[311861453,1705476680392,-1356.42,0.00023013,2]
[311861454,1705476680405,-3068.84,0.00023013,2]
[311861455,1705476680414,-1335.4,0.00023013,2]
[311861456,1705476680423,-478.1023633,0.00023013,2]
[311861457,1705476680433,-1349.22,0.00023013,2]
[311861458,1705476680443,-1910.78,0.00023013,2]
[311861459,1705476680452,-762.08,0.00023013,2]
[311861460,1705476680461,-910.9,0.00023013,2]
[311861461,1705476680470,-1630.08,0.00023013,2]
[311861462,1705476680480,-500.0,0.00023013,2]
[311861463,1705476680489,-1795.97,0.00023013,2]
[311861464,1705476680498,-500.0,0.00023013,2]
[311861465,1705476680507,-3758.51,0.00023013,2]
[311861466,1705476680517,-1990.88,0.00023013,2]
[311861467,1705476680527,-1293.57,0.00023013,2]
[311861468,1705476680536,-1347.86,0.00023013,2]
[311861469,1705476680545,-4466.86,0.00023013,2]
[311861470,1705476680554,-2806.33,0.00023013,2]
[311861471,1705476680563,-500.0,0.00023013,2]
[311861472,1705476680573,-4702.16,0.00023013,5]
[311861473,1705476680582,-975.21,0.00023013,2]
[311861474,1705476680591,-7857.97,0.00023013,2]
[311861475,1705476680600,-661.36,0.00023013,2]
[311861476,1705476680611,-516.08801815,0.00023013,2]
[311861477,1705476680621,-3379.77,0.00023013,2]
[311861478,1705476680629,-745.19,0.00023013,2]
[311861479,1705476680639,-6444.76,0.00023013,2]
[311861480,1705476680648,-1124.19,0.00023013,2]
[311861481,1705476680658,-3704.26,0.00023013,2]
[311861482,1705476680667,-906.36,0.00023013,2]
[311861483,1705476680677,-16162.54,0.00023013,2]
[311861484,1705476680686,-12434.26,0.00023013,2]
[311861485,1705476680696,-9482.71,0.00023013,2]
[311861486,1705476680705,-11109.93,0.00023013,2]
[311861487,1705476680714,-3256.16,0.00023013,2]
[311861488,1705476680723,-745.97,0.00023013,2]
[311861489,1705476680733,-1640.28,0.00023013,2]
[311861490,1705476680742,-20221.89,0.00023013,2]
[311861491,1705476680751,-3399.11,0.00023013,2]
[311861492,1705476680761,-454.52,0.00023013,2]
[311861493,1705476680770,-6354.09,0.00023013,2]
[311861494,1705476680780,-2538.4,0.00023013,2]
[311861495,1705476680790,-335.71,0.00023013,2]
[311861496,1705476680799,-500.0,0.00023013,2]
[311861497,1705476680808,-500.0,0.00023013,2]
[311861498,1705476680817,-1837.55,0.00023013,2]
[311861499,1705476680827,-218.44,0.00023013,2]
[311861500,1705476680836,-2659.91,0.00023013,2]
[311861501,1705476680845,-1254.9,0.00023013,2]
[311861502,1705476680854,-768.69,0.00023013,2]
[311861503,1705476680864,-4127.52,0.00023013,2]
[311861504,1705476680873,-804.83,0.00023013,2]
[311861505,1705476680882,-1027.34,0.00023013,2]
[311861506,1705476680892,-500.0,0.00023013,2]
[311861507,1705476680902,-6211.9,0.00023013,2]
[311861508,1705476680911,-1135.57,0.00023013,2]
[311861509,1705476680921,-1394.59,0.00023013,2]
[311861510,1705476680930,-2527.38,0.00023013,2]
[311861511,1705476680939,-11978.73,0.00023013,2]
[311861512,1705476680948,-500.0,0.00023013,2]
[311861513,1705476680957,-1232.33,0.00023013,2]
[311861514,1705476680967,-1194.86,0.00023013,2]
[311861515,1705476680976,-1197.28,0.00023013,2]
[311861516,1705476680985,-794.93,0.00023013,2]
[311861517,1705476680994,-1023.46,0.00023013,2]
[311861518,1705476681004,-1514.74,0.00023013,2]
[311861519,1705476681013,-1714.78,0.00023013,2]
[311861520,1705476681022,-12347.72,0.00023013,2]
[311861521,1705476681032,-689.66,0.00023013,2]
[311861522,1705476681041,-5216.21,0.00023013,2]
[311861523,1705476681050,-1686.52,0.00023013,2]
[311861524,1705476681059,-2845.05,0.00023013,2]
[311861525,1705476681069,-2569.42,0.00023013,2]
[311861526,1705476681078,-873.47,0.00023013,2]
[311861527,1705476681087,-3061.14,0.00023013,2]
[311861528,1705476681096,-21768.2,0.00023013,2]
[311861529,1705476681105,-1882.19,0.00023013,2]
[311861530,1705476681115,-3382.23,0.00023013,2]
[311861531,1705476681124,-544.36,0.00023013,2]
[311861532,1705476681133,-1892.99,0.00023013,2]
[311861533,1705476681143,-1718.95,0.00023013,2]
[311861534,1705476681152,-2729.13,0.00023013,2]
[311861535,1705476681162,-1110.88,0.00023013,2]
[311861536,1705476681171,-1472.6,0.00023013,2]
[311861537,1705476681181,-1521.32,0.00023013,2]
[311861538,1705476681190,-7299.5,0.00023013,2]
[311861539,1705476681199,-6042.66,0.00023013,2]
[311861540,1705476681209,-2221.72,0.00023013,2]
[311861541,1705476681219,-500.0,0.00023013,2]
[311861542,1705476681228,-2832.83,0.00023013,2]
[311861543,1705476681238,-1150.25,0.00023013,2]
[311861544,1705476681247,-1558.01,0.00023013,2]
[311861545,1705476681257,-1098.97,0.00023013,2]
[311861546,1705476681266,-1166.21,0.00023013,2]
[311861547,1705476681275,-500.0,0.00023013,2]
[311861548,1705476681284,-1069.45,0.00023013,2]
[311861549,1705476681293,-2355.39,0.00023013,2]
[311861550,1705476681303,-3591.8,0.00023013,2]
[311861551,1705476681312,-1684.66,0.00023013,2]
[311861552,1705476681321,-2434.16,0.00023013,2]
[311861553,1705476681330,-500.0,0.00023013,2]
[311861554,1705476681339,-2606.94,0.00023013,2]
[311861555,1705476681348,-2406.41,0.00023013,2]
[311861556,1705476681357,-500.0,0.00023013,2]
[311861557,1705476681367,-1852.97,0.00023013,2]
[311861558,1705476681376,-1143.46,0.00023013,2]
[311861559,1705476681390,-3034.52,0.00023013,2]
[311861560,1705476681400,-2106.34,0.00023013,2]
[311861561,1705476681409,-500.0,0.00023013,2]
[311861562,1705476681419,-6039.3,0.00023013,2]
[311861563,1705476681429,-500.0,0.00023013,2]
[311861564,1705476681438,-500.0,0.00023013,2]
[311861565,1705476681448,-2689.31,0.00023013,2]
[311861566,1705476681457,-2935.07,0.00023013,2]
[311861567,1705476681466,-1479.69,0.00023013,2]
[311861568,1705476681476,-1497.87,0.00023013,2]
[311861569,1705476681485,-4181.77,0.00023013,2]
[311861570,1705476681495,-627.99,0.00023013,2]
[311861571,1705476681505,-4882.39,0.00023013,2]
[311861572,1705476681514,-41398.88,0.00023013,2]
[311861573,1705476681523,-2836.0,0.00023013,2]
[311861574,1705476681533,-3534.13,0.00023013,2]
[311861575,1705476681542,-1156.16,0.00023013,2]
[311861576,1705476681552,-1508.99,0.00023013,2]
[311861577,1705476681562,-500.0,0.00023013,2]
[311861578,1705476681571,-1739.73,0.00023013,2]
[311861579,1705476681581,-1188.49,0.00023013,2]
[311861580,1705476681590,-500.0,0.00023013,2]
[311861581,1705476681599,-3412.97,0.00023013,2]
[311861582,1705476681609,-500.0,0.00023013,2]
[311861583,1705476681618,-31583.95,0.00023013,2]
[311861584,1705476681628,-2106.23,0.00023013,2]
[311861585,1705476681639,-500.0,0.00023013,2]
[311861586,1705476681648,-2342.46,0.00023013,2]
[311861587,1705476681658,-3068.01,0.00023013,2]
[311861588,1705476681668,-2931.11,0.00023013,2]
[311861589,1705476681677,-1279.05,0.00023013,2]
[311861590,1705476681686,-1974.83,0.00023013,2]
[311861591,1705476681696,-500.0,0.00023013,2]
[311861592,1705476681705,-905.62,0.00023013,2]
[311861593,1705476681714,-673.74,0.00023013,2]
[311861594,1705476681723,-924.31,0.00023013,2]
[311861595,1705476681732,-723.73,0.00023013,2]
[311861596,1705476681741,-7135.45,0.00023013,2]
[311861597,1705476681751,-3841.98,0.00023013,2]
[311861598,1705476681760,-1202.06,0.00023013,2]
[311861599,1705476681770,-500.0,0.00023013,2]
[311861600,1705476681778,-1235.21,0.00023013,2]
[311861601,1705476681788,-1240.2,0.00023013,2]
[311861602,1705476681797,-2033.72,0.00023013,2]
[311861603,1705476681806,-2621.03,0.00023013,2]
[311861604,1705476681816,-8444.95,0.00023013,2]
[311861605,1705476681825,-2575.29,0.00023013,2]
[311861606,1705476681834,-5865.12,0.00023013,2]
[311861607,1705476681843,-1735.37,0.00023013,2]
[311861608,1705476681852,-2471.03,0.00023013,2]
[311861609,1705476681861,-1561.45,0.00023013,2]
[311861610,1705476681870,-2736.94,0.00023013,2]
[311861611,1705476681879,-2739.39,0.00023013,2]
[311861612,1705476681889,-2612.65,0.00023013,2]
[311861613,1705476681899,-774.71,0.00023013,2]
[311861614,1705476681909,-500.0,0.00023013,2]
[311861615,1705476681918,-540.68,0.00023013,2]
[311861616,1705476681927,-586.29,0.00023013,2]
[311861617,1705476681937,-3538.98,0.00023013,2]
[311861618,1705476681947,-1291.61,0.00023013,2]
[311861619,1705476681956,-4012.75,0.00023013,2]
[311861620,1705476681965,-536.83,0.00023013,2]
[311861621,1705476681974,-709.89,0.00023013,2]
[311861622,1705476681983,-1954.09,0.00023013,2]
[311861623,1705476681992,-1524.83,0.00023013,2]
[311861624,1705476682002,-1263.43,0.00023013,2]
[311861625,1705476682011,-731.06,0.00023013,2]
[311861626,1705476682020,-3607.07,0.00023013,2]
[311861627,1705476682029,-500.0,0.00023013,2]
[311861628,1705476682038,-839.52,0.00023013,2]
[311861629,1705476682047,-1904.27,0.00023013,2]
[311861630,1705476682057,-500.0,0.00023013,2]
[311861631,1705476682066,-2144.67,0.00023013,2]
[311861632,1705476682076,-1957.1,0.00023013,2]
[311861633,1705476682085,-898.05,0.00023013,2]
[311861634,1705476682095,-1970.8,0.00023013,2]
[311861635,1705476682104,-10943.33,0.00023013,2]
[311861636,1705476682113,-196.49738313,0.00023013,2]
[311861637,1705476682122,-183.84,0.00023028,2]
[311861638,1705476682131,-164.18,0.00023029,2]
[311861639,1705476682140,-175.28,0.00023092,2]
[311861640,1705476682149,-3320.6056184,0.0002313,2]
[311861641,1705476682158,-1342.25235722,0.00023136,2]
[311861642,1705476682167,-2408.8698179,0.00023187,2]
[311861643,1705476682176,-250.0,0.000232,2]
[311861644,1705476682185,-250.0,0.000232,2]
[311861645,1705476682195,-250.0,0.000232,2]
[311861646,1705476682204,-250.0,0.000232,2]
[311861647,1705476682213,-250.0,0.000232,2]
[311861648,1705476682222,-250.0,0.000232,2]
[311861649,1705476682232,-269.3,0.000232,2]
[311861650,1705476682241,-500.58,0.00023245,2]